fUSD/lending_fUSD_20240318
["ID","MTS","AMOUNT","RATE_DAILY","PERIOD"]
[319499405,1710802248766,-500.0,0.00027006,4]
[319499406,1710802248776,-500.0,0.00027006,4]
[319499407,1710802248786,-500.0,0.00027006,4]
[319499408,1710802248797,-500.0,0.00027006,4]
[319499409,1710802248807,-500.0,0.00027006,4]
[319499410,1710802248817,-500.0,0.00027006,4]
[319499411,1710802248827,-191.0,0.00027006,4]
[319499412,1710802248838,-152.0,0.00027015,3]
[319499413,1710802248848,-222.43709153,0.00027065,2]
[319499414,1710802248859,-600.0,0.00027113,2]
[319499415,1710802248870,-160.0,0.00027118,2]
[319499416,1710802248880,-500.0,0.00027122,2]
[319499417,1710802248891,-500.0,0.00027122,2]
[319499418,1710802248902,-500.0,0.00027122,2]
[319499419,1710802248913,-500.0,0.00027122,2]
[319499420,1710802248928,-500.0,0.00027122,2]
[319499421,1710802248938,-626.6932017,0.00027122,2]
[319499422,1710802248948,-500.0,0.00027122,2]
[319499423,1710802248959,-500.0,0.00027122,2]
[319499424,1710802248970,-500.0,0.00027122,2]
[319499425,1710802248981,-500.0,0.00027122,2]
[319499426,1710802248991,-663.43,0.00027122,2]
[319499427,1710802249000,-500.0,0.00027122,2]
[319499428,1710802249011,-603.25,0.00027122,2]
[319499429,1710802249020,-354.66350889,0.00027122,2]
[319499430,1710802249032,-308.42649111,0.00027122,2]
[319499431,1710802249042,-500.0,0.00027122,2]
[319499432,1710802249051,-500.0,0.00027122,2]
[319499433,1710802249061,-505.71,0.00027122,2]
[319499434,1710802249070,-741.46,0.00027123,2]
[319499435,1710802249079,-826.95,0.00027123,2]
[319499436,1710802249088,-2122.22,0.00027123,2]
[319499437,1710802249098,-807.78,0.00027123,2]
[319499438,1710802249107,-1006.2,0.00027123,2]
[319499439,1710802249116,-1452.64,0.00027123,2]
[319499440,1710802249125,-2348.83,0.00027123,2]
[319499441,1710802249135,-883.91,0.00027123,2]
[319499442,1710802249145,-945.54,0.00027123,2]
[319499443,1710802249154,-694.8,0.00027123,2]
[319499444,1710802249164,-802.51,0.00027123,2]
[319499445,1710802249177,-667.68,0.00027123,2]
[319499446,1710802249187,-845.24,0.00027123,2]
[319499447,1710802249197,-500.0,0.00027123,2]
[319499448,1710802249207,-500.0,0.00027123,2]
[319499449,1710802249217,-526.7,0.00027123,2]
[319499450,1710802249544,-783.99,0.00027123,2]
[319499451,1710802249562,-712.46,0.00027123,2]
[319499452,1710802249581,-1152.49,0.00027123,2]
[319499453,1710802249595,-500.0,0.00027123,2]
[319499454,1710802249604,-160.0,0.00027127,2]
[319499455,1710802249613,-319.14,0.0002713,2]
[319499456,1710802249622,-546.1181314,0.00027181,3]
[319499457,1710802249631,-680.05877849,0.00027188,2]
[319499458,1710802249641,-737.28779864,0.00027188,2]
[319499459,1710802249653,-1103.37645736,0.00027188,2]
[319499460,1710802249679,-578.00998362,0.00027188,2]
[319499461,1710802250020,-572.67002,0.00027188,2]
[319499462,1710802250032,-1250.65574038,0.00027188,2]
[319499463,1710802250042,-975.0,0.00027188,2]
[319499464,1710802250052,-313.0,0.00027188,2]
[319499465,1710802250061,-3100.5863785,0.00027357,2]
[319499466,1710802250071,-153.80188616,0.00027381,2]
[319499467,1710802250081,-500.0,0.00027396,2]
[319499468,1710802250091,-500.0,0.00027396,2]
[319499469,1710802250101,-500.0,0.00027396,2]
[319499470,1710802250111,-489.02,0.00027396,2]
[319499471,1710802250121,-500.0,0.00027396,2]
[319499472,1710802250132,-500.0,0.00027396,2]
[319499473,1710802250141,-500.0,0.00027396,2]
[319499474,1710802250151,-663.43,0.00027396,2]
[319499475,1710802250161,-647.6,0.00027396,2]
[319499476,1710802250173,-480.60217693,0.00027396,2]
[319499477,1710802250184,-663.09,0.00027396,2]
[319499478,1710802250194,-500.0,0.00027396,2]
[319499479,1710802250204,-500.0,0.00027396,2]
[319499480,1710802250213,-505.71,0.00027396,2]
[319499481,1710802250223,-741.46,0.00027397,2]
[319499482,1710802250232,-826.95,0.00027397,2]
[319499483,1710802250242,-21.92743505,0.00027397,2]
[319499484,1710802250253,-2100.29256495,0.00027397,2]
[319499485,1710802250263,-807.78,0.00027397,2]
[319499486,1710802250272,-1006.2,0.00027397,2]
[319499487,1710802250281,-1452.64,0.00027397,2]
[319499488,1710802250291,-2348.83,0.00027397,2]
[319499489,1710802250303,-883.91,0.00027397,2]
[319499490,1710802250312,-945.54,0.00027397,2]
[319499491,1710802250322,-500.0,0.00027397,2]
[319499492,1710802250331,-500.0,0.00027397,2]
[319499493,1710802250341,-694.8,0.00027397,2]
[319499494,1710802250350,-802.51,0.00027397,2]
[319499495,1710802250360,-667.68,0.00027397,2]
[319499496,1710802250369,-845.24,0.00027397,2]
[319499497,1710802250380,-500.0,0.00027397,2]
[319499498,1710802250390,-500.0,0.00027397,2]
[319499499,1710802250399,-526.7,0.00027397,2]
[319499500,1710802250408,-783.99,0.00027397,2]
[319499501,1710802250417,-712.46,0.00027397,2]
[319499502,1710802250429,-1152.49,0.00027397,2]
[319499503,1710802250439,-500.0,0.00027397,2]
[319499504,1710802250448,-500.0,0.00027397,2]
[319499505,1710802250458,-150.0,0.00027397,2]
[319499506,1710802250468,-365.78163085,0.00027397,120]
[319499507,1710802250477,-150.95,0.00027397,2]
[319499508,1710802250487,-752.04,0.00027397,10]
[319499509,1710802250496,-155.0,0.00027398,2]
[319499510,1710802250506,-151.05666748,0.000274,2]
[319499511,1710802250516,-151.031907,0.00027448,6]
[319499512,1710802250525,-4242.0,0.0002746,2]
[319499513,1710802250535,-975.0,0.0002746,2]
[319499514,1710802250545,-313.0,0.0002746,2]
[319499515,1710802250554,-170.57418274,0.00027475,2]
[319499516,1710802250564,-188.49,0.00027569,120]
[319499517,1710802250573,-632.02,0.0002767,2]
[319499518,1710802250583,-500.0,0.0002767,2]
[319499519,1710802250594,-500.0,0.0002767,2]
[319499520,1710802250604,-500.0,0.0002767,2]
[319499521,1710802250613,-663.43,0.0002767,2]
[319499522,1710802250624,-663.09,0.0002767,2]
[319499523,1710802250633,-500.0,0.0002767,2]
[319499524,1710802250643,-505.71,0.0002767,2]
[319499525,1710802250652,-741.46,0.00027671,2]
[319499526,1710802250662,-826.95,0.00027671,2]
[319499527,1710802250675,-2122.22,0.00027671,2]
[319499528,1710802250686,-807.78,0.00027671,2]
[319499529,1710802250696,-1006.2,0.00027671,2]
[319499530,1710802250705,-1452.64,0.00027671,2]
[319499531,1710802250715,-2348.83,0.00027671,2]
[319499532,1710802250724,-883.91,0.00027671,2]
[319499533,1710802250735,-945.54,0.00027671,2]
[319499534,1710802250744,-694.8,0.00027671,2]
[319499535,1710802250754,-802.51,0.00027671,2]
[319499536,1710802250764,-667.68,0.00027671,2]
[319499537,1710802250773,-845.24,0.00027671,2]
[319499538,1710802250783,-500.0,0.00027671,2]
[319499539,1710802250793,-500.0,0.00027671,2]
[319499540,1710802250802,-526.7,0.00027671,2]
[319499541,1710802250812,-783.99,0.00027671,2]
[319499542,1710802250822,-712.46,0.00027671,2]
[319499543,1710802250831,-1152.49,0.00027671,2]
[319499544,1710802250840,-500.0,0.00027671,2]
[319499545,1710802250850,-500.0,0.00027671,2]
[319499546,1710802250859,-150.0,0.0002772,2]
[319499547,1710802250868,-500.0,0.0002772,2]
[319499548,1710802250878,-4242.0,0.00027732,2]
[319499549,1710802250887,-975.0,0.00027732,2]
[319499550,1710802250897,-313.0,0.00027732,2]
[319499551,1710802250906,-151.07221851,0.00027824,2]
[319499552,1710802250916,-999.66,0.0002784,2]
[319499553,1710802250929,-151.05666748,0.00027876,2]
[319499554,1710802250939,-3091.0,0.000279,2]
[319499555,1710802250950,-500.0,0.00027944,2]
[319499556,1710802250960,-586.06,0.00027944,2]
[319499557,1710802250970,-500.0,0.00027944,2]
[319499558,1710802250979,-663.43,0.00027944,2]
[319499559,1710802250989,-663.09,0.00027944,2]
[319499560,1710802250999,-505.71,0.00027944,2]
[319499561,1710802251008,-1813.28416099,0.00027945,2]
[319499562,1710802251021,-3573.38134892,0.00027945,2]
[319499563,1710802251044,-413.33449009,0.00027945,2]
[319499564,1710802251054,-741.46,0.00027945,2]
[319499565,1710802251063,-826.95,0.00027945,2]
[319499566,1710802251073,-2122.22,0.00027945,2]
[319499567,1710802251083,-807.78,0.00027945,2]
[319499568,1710802251093,-1006.2,0.00027945,2]
[319499569,1710802251103,-1452.64,0.00027945,2]
[319499570,1710802251113,-2348.83,0.00027945,2]
[319499571,1710802251123,-883.91,0.00027945,2]
[319499572,1710802251133,-945.54,0.00027945,2]
[319499573,1710802251143,-694.8,0.00027945,2]
[319499574,1710802251153,-802.51,0.00027945,2]
[319499575,1710802251162,-667.68,0.00027945,2]
[319499576,1710802251174,-845.24,0.00027945,2]
[319499577,1710802251183,-374.63233016,0.00027945,2]
[319499578,1710802251193,-500.0,0.00027945,2]
[319499579,1710802251203,-107.71290107,0.00027945,2]
[319499580,1710802251445,-0.06897312,0.00027945,2]
[319499581,1710802251466,-418.91812581,0.00027945,2]
[319499582,1710802251476,-783.99,0.00027945,2]
[319499583,1710802251486,-712.46,0.00027945,2]
[319499584,1710802251495,-1152.49,0.00027945,2]
[319499585,1710802251505,-578.66673323,0.00027945,2]
[319499586,1710802251515,-500.0,0.00027945,2]
[319499587,1710802251524,-150.0,0.00027945,2]
[319499588,1710802251533,-327.0,0.00027945,2]
[319499589,1710802251543,-1000.0,0.00027945,2]
[319499590,1710802251553,-155.0,0.00028,2]
[319499591,1710802251563,-1200.0,0.00028,29]
[319499592,1710802251572,-265.22149244,0.00028,2]
[319499593,1710802251582,-488.0957165,0.00028,2]
[319499594,1710802251591,-500.0,0.00028,2]
[319499595,1710802251601,-4242.0,0.00028004,2]
[319499596,1710802251610,-975.0,0.00028004,2]
[319499597,1710802251620,-313.0,0.00028004,2]
[319499598,1710802251629,-170.57418274,0.00028114,2]
[319499599,1710802251638,-500.0,0.00028218,2]
[319499600,1710802251648,-614.14106742,0.00028218,2]
[319499601,1710802251657,-663.43,0.00028218,2]
[319499602,1710802251667,-663.09,0.00028218,2]
[319499603,1710802251678,-505.71,0.00028218,2]
[319499604,1710802251688,-741.65539408,0.00028219,2]
[319499605,1710802251697,-826.97438256,0.00028219,2]
[319499606,1710802251706,-2122.43662083,0.00028219,2]
[319499607,1710802251717,-807.92749197,0.00028219,2]
[319499608,1710802251726,-1006.37681875,0.00028219,2]
[319499609,1710802251735,-1452.75037117,0.00028219,2]
[319499610,1710802251745,-2348.84914233,0.00028219,2]
[319499611,1710802251755,-884.12,0.00028219,2]
[319499612,1710802251765,-945.72368706,0.00028219,2]
[319499613,1710802251774,-695.03278368,0.00028219,2]
[319499614,1710802251783,-802.58292043,0.00028219,2]
[319499615,1710802251793,-667.87443453,0.00028219,2]
[319499616,1710802251803,-845.36101601,0.00028219,2]
[319499617,1710802251813,-235.99078086,0.00028219,2]
[319499618,1710802251822,-526.70728064,0.00028219,2]
[319499619,1710802251832,-784.14278773,0.00028219,2]
[319499620,1710802251843,-712.63622843,0.00028219,2]
[319499621,1710802251853,-1152.49590368,0.00028219,2]
[319499622,1710802251861,-500.0,0.00028219,2]
[319499623,1710802251871,-431.21,0.00028239,2]
[319499624,1710802251880,-151.07221851,0.00028328,2]
[319499625,1710802251889,-151.05666748,0.00028353,2]
[319499626,1710802251898,-326.51,0.00028366,2]
[319499627,1710802251907,-153.62681432,0.00028391,2]
[319499628,1710802251917,-151.031907,0.00028448,6]
[319499629,1710802251928,-500.0,0.00028492,2]
[319499630,1710802251937,-663.43,0.00028492,2]
[319499631,1710802251947,-663.09,0.00028492,2]
[319499632,1710802251956,-505.71,0.00028492,2]
[319499633,1710802251966,-500.0,0.00028493,2]
[319499634,1710802251976,-150.0,0.00028493,2]
[319499635,1710802251985,-150.95,0.00028493,2]
[319499636,1710802251995,-999.66,0.0002868,2]
[319499637,1710802252005,-150.0,0.0002872,2]
[319499638,1710802252014,-170.57418274,0.00028754,2]
[319499639,1710802252023,-500.0,0.00028766,2]
[319499640,1710802252033,-663.43,0.00028766,2]
[319499641,1710802252043,-663.09,0.00028766,2]
[319499642,1710802252053,-505.71,0.00028766,2]
[319499643,1710802252062,-463.11022735,0.00028767,2]
[319499644,1710802252071,-500.0,0.00028767,2]
[319499645,1710802252081,-155.0,0.00028768,2]
[319499646,1710802252091,-153.80188616,0.00028822,2]
[319499647,1710802252100,-151.05666748,0.00028829,2]
[319499648,1710802252110,-319.14,0.0002886,2]
[319499649,1710802252119,-152.0,0.00028867,4]
[319499650,1710802252129,-1200.97223445,0.0002889,2]
[319499651,1710802252139,-979.82882109,0.00029,2]
[319499652,1710802252149,-500.0,0.0002904,2]
[319499653,1710802252158,-663.43,0.0002904,2]
[319499654,1710802252168,-663.09,0.0002904,2]
[319499655,1710802252178,-505.71,0.0002904,2]
[319499656,1710802252187,-500.0,0.00029041,2]
[319499657,1710802252196,-150.0,0.00029041,2]
[319499658,1710802252205,-153.05383812,0.00029061,2]
[319499659,1710802252214,-327.0,0.00029178,2]
[319499660,1710802252223,-2188.06287764,0.000292,2]
[319499661,1710802252232,-161.18210782,0.0002921,2]
[319499662,1710802252242,-153.94018795,0.00029274,2]
[319499663,1710802252251,-2142.76816481,0.000293,2]
[319499664,1710802252260,-151.05666748,0.00029306,2]
[319499665,1710802252269,-500.0,0.00029314,2]
[319499666,1710802252279,-663.43,0.00029314,2]
[319499667,1710802252289,-663.09,0.00029314,2]
[319499668,1710802252300,-505.71,0.00029314,2]
[319499669,1710802252310,-500.0,0.00029315,2]
[319499670,1710802252319,-170.57418274,0.00029394,2]
[319499671,1710802252327,-1009.49093235,0.000294,2]
[319499672,1710802252337,-151.031907,0.00029448,6]
[319499673,1710802252347,-1012.18107272,0.000295,3]
[319499674,1710802252356,-999.66,0.0002952,2]
[319499675,1710802252365,-600.0,0.00029578,2]
[319499676,1710802252375,-500.0,0.00029588,2]
[319499677,1710802252384,-663.43,0.00029588,2]
[319499678,1710802252395,-663.09,0.00029588,2]
[319499679,1710802252405,-505.71,0.00029588,2]
[319499680,1710802252557,-555.86204575,0.00029589,2]
[319499681,1710802252574,-150.0,0.00029589,2]
[319499682,1710802252583,-150.95,0.00029589,2]
[319499683,1710802252592,-3100.5863785,0.00029612,2]
[319499684,1710802252601,-400.0,0.0002964,2]
[319499685,1710802252611,-2222.51916842,0.000297,2]
[319499686,1710802252892,-1200.0,0.000297,2]
[319499687,1710802252905,-472.37513255,0.000297,2]
[319499688,1710802252918,-366.43596909,0.000297,2]
[319499689,1710802252942,-15946.49858379,0.000297,2]
[319499690,1710802252952,-6094.35594246,0.000297,2]
[319499691,1710802252963,-14113.47291139,0.000297,2]
[319499692,1710802252973,-20207.82885385,0.000297,2]
[319499693,1710802252983,-200.87961551,0.000297,2]
[319499694,1710802252992,-150.0,0.0002972,2]
[319499695,1710802253001,-151.05666748,0.00029783,2]
[319499696,1710802253011,-151.07221851,0.0002984,2]
[319499697,1710802253020,-500.0,0.00029862,2]
[319499698,1710802253030,-663.43,0.00029862,2]
[319499699,1710802253039,-663.09,0.00029862,2]
[319499700,1710802253048,-505.71,0.00029862,2]
[319499701,1710802253058,-546.1181314,0.00029863,4]
[319499702,1710802253067,-5048.11778627,0.0002999,2]
[319499703,1710802253076,-1064.31704969,0.0003,2]
[319499704,1710802253085,-3200.0,0.0003,2]
[319499705,1710802253095,-4949.95058241,0.0003,2]
[319499706,1710802253104,-155.0,0.0003,4]
[319499707,1710802253113,-713.64088082,0.0003,30]
[319499708,1710802253122,-27458.97278721,0.0003,4]
[319499709,1710802253132,-155.0,0.0003,5]
[319499710,1710802253141,-6525.68538827,0.0003,30]
[319499711,1710802253151,-33737.09845378,0.0003,4]
[319499712,1710802253160,-1098.60235753,0.0003,4]
[319499713,1710802253169,-715.17932069,0.0003,6]
[319499714,1710802253181,-152.36,0.0003,2]
[319499715,1710802253190,-152.36,0.0003,2]
[319499716,1710802253200,-152.36,0.0003,2]
[319499717,1710802253209,-152.36,0.0003,2]
[319499718,1710802253219,-152.36,0.0003,2]
[319499719,1710802253228,-152.36,0.0003,2]
[319499720,1710802253237,-152.36,0.0003,2]
[319499721,1710802253247,-152.36,0.0003,2]
[319499722,1710802253256,-152.36,0.0003,2]
[319499723,1710802253265,-10000.0,0.0003,15]
[319499724,1710802253274,-155.08062146,0.0003,2]
[319499725,1710802253283,-486.28061988,0.0003,4]
[319499726,1710802253292,-248.35568911,0.0003,4]
[319499727,1710802253305,-155.0,0.0003,2]
[319499728,1710802253314,-212.27759286,0.0003,7]
[319499729,1710802253323,-155.26493256,0.0003,4]
[319499730,1710802253332,-155.38717264,0.0003,7]
[319499731,1710802253342,-300.0,0.0003,120]
[319499732,1710802253351,-1199.99999906,0.0003,31]
[319499733,1710802253360,-216.0,0.0003,2]
[319499734,1710802253369,-150.0,0.0003,2]
[319499735,1710802253380,-205.0,0.0003,2]
[319499736,1710802253389,-247.05,0.0003,2]
[319499737,1710802253398,-247.05,0.0003,2]
[319499738,1710802253407,-247.05,0.0003,2]
[319499739,1710802253417,-247.05,0.0003,2]
[319499740,1710802253428,-247.05,0.0003,2]
[319499741,1710802253437,-247.05,0.0003,2]
[319499742,1710802253447,-247.05,0.0003,2]
[319499743,1710802253456,-247.05,0.0003,2]
[319499744,1710802253465,-247.05,0.0003,2]
[319499745,1710802253474,-247.05,0.0003,2]
[319499746,1710802253483,-247.05,0.0003,2]
[319499747,1710802253492,-247.05,0.0003,2]
[319499748,1710802253501,-247.05,0.0003,2]
[319499749,1710802253510,-247.05,0.0003,2]
[319499750,1710802253520,-247.05,0.0003,2]
[319499751,1710802253529,-247.05,0.0003,2]
[319499752,1710802253539,-247.05,0.0003,2]
[319499753,1710802253548,-247.05,0.0003,2]
[319499754,1710802253558,-247.05,0.0003,2]
[319499755,1710802253567,-247.05,0.0003,2]
[319499756,1710802253576,-247.05,0.0003,2]
[319499757,1710802253585,-247.05,0.0003,2]
[319499758,1710802253595,-247.05,0.0003,2]
[319499759,1710802253604,-247.05,0.0003,2]
[319499760,1710802253614,-247.05,0.0003,2]
[319499761,1710802253623,-247.05,0.0003,2]
[319499762,1710802253633,-247.05,0.0003,2]
[319499763,1710802253642,-247.05,0.0003,2]
[319499764,1710802253651,-247.05,0.0003,2]
[319499765,1710802253661,-247.05,0.0003,2]
[319499766,1710802253671,-247.05,0.0003,2]
[319499767,1710802253683,-247.05,0.0003,2]
[319499768,1710802253692,-247.05,0.0003,2]
[319499769,1710802253701,-247.05,0.0003,2]
[319499770,1710802253710,-247.05,0.0003,2]
[319499771,1710802253720,-247.05,0.0003,2]
[319499772,1710802253729,-247.05,0.0003,2]
[319499773,1710802253738,-247.05,0.0003,2]
[319499774,1710802253746,-247.05,0.0003,2]
[319499775,1710802253756,-247.05,0.0003,2]
[319499776,1710802253765,-247.05,0.0003,2]
[319499777,1710802253775,-247.05,0.0003,2]
[319499778,1710802253784,-247.05,0.0003,2]
[319499779,1710802253793,-247.05,0.0003,2]
[319499780,1710802253803,-247.05,0.0003,2]
[319499781,1710802253814,-247.05,0.0003,2]
[319499782,1710802253823,-247.05,0.0003,2]
[319499783,1710802253834,-247.05,0.0003,2]
[319499784,1710802253843,-247.05,0.0003,2]
[319499785,1710802253854,-247.05,0.0003,2]
[319499786,1710802253863,-247.05,0.0003,2]
[319499787,1710802253873,-247.05,0.0003,2]
[319499788,1710802253882,-247.05,0.0003,2]
[319499789,1710802253892,-247.05,0.0003,2]
[319499790,1710802253901,-247.05,0.0003,2]
[319499791,1710802253911,-247.05,0.0003,2]
[319499792,1710802253920,-247.05,0.0003,2]
[319499793,1710802253930,-247.05,0.0003,2]
[319499794,1710802253940,-247.05,0.0003,2]
[319499795,1710802253949,-247.05,0.0003,2]
[319499796,1710802253958,-247.05,0.0003,2]
[319499797,1710802253967,-247.05,0.0003,2]
[319499798,1710802253976,-247.05,0.0003,2]
[319499799,1710802253986,-247.05,0.0003,2]
[319499800,1710802253995,-247.05,0.0003,2]
[319499801,1710802254005,-247.05,0.0003,2]
[319499802,1710802254014,-170.57418274,0.00030034,2]
[319499803,1710802254023,-188.49,0.00030075,120]
[319499804,1710802254032,-151.07221851,0.00030113,7]
[319499805,1710802254046,-151.07221851,0.00030134,7]
[319499806,1710802254055,-500.0,0.00030136,2]
[319499807,1710802254066,-663.43,0.00030136,2]
[319499808,1710802254075,-663.09,0.00030136,2]
[319499809,1710802254086,-505.71,0.00030136,2]
[319499810,1710802254095,-752.04,0.00030137,10]
[319499811,1710802254105,-150.0,0.00030137,2]
[319499812,1710802254114,-155.0,0.00030138,2]
[319499813,1710802254124,-153.05383812,0.00030162,7]
[319499814,1710802254134,-500.0,0.0003022,2]
[319499815,1710802254144,-7792.4,0.00030237,21]
[319499816,1710802254153,-300.0,0.0003025,120]
[319499817,1710802254162,-151.05666748,0.00030259,2]
[319499818,1710802254172,-999.66,0.0003036,2]
[319499819,1710802254183,-162.60416181,0.0003038,7]
[319499820,1710802254192,-153.94018796,0.00030396,7]
[319499821,1710802254201,-187.81748316,0.0003041,4]
[319499822,1710802254211,-1592.9328983,0.0003041,4]
[319499823,1710802254220,-8091.46671017,0.0003041,4]
[319499824,1710802254230,-591.49765394,0.0003041,17]
[319499825,1710802254239,-185.91255156,0.0003041,14]
[319499826,1710802254249,-318.58604289,0.0003041,4]
[319499827,1710802254259,-663.43,0.0003041,4]
[319499828,1710802254268,-663.09,0.0003041,4]
[319499829,1710802254277,-505.71,0.0003041,4]
[319499830,1710802254287,-216.0,0.00030411,2]
[319499831,1710802254300,-327.0,0.00030411,2]
[319499832,1710802254309,-151.031907,0.00030448,7]
[319499833,1710802254319,-489.84146066,0.000305,120]
[319499834,1710802254333,-431.21,0.00030503,2]
[319499835,1710802254342,-153.80188618,0.00030578,7]
[319499836,1710802254351,-554.78,0.0003059,2]
[319499837,1710802254360,-170.57418274,0.00030673,2]
[319499838,1710802254370,-663.43,0.00030684,4]
[319499839,1710802254379,-663.09,0.00030684,4]
[319499840,1710802254390,-505.71,0.00030684,4]
[319499841,1710802254399,-150.95,0.00030685,2]
[319499842,1710802254408,-150.0,0.00030685,2]
[319499843,1710802254418,-152.36,0.000307,2]
[319499844,1710802254427,-152.36,0.000307,2]
[319499845,1710802254437,-152.36,0.000307,2]
[319499846,1710802254447,-152.36,0.000307,2]
[319499847,1710802254456,-152.36,0.000307,2]
[319499848,1710802254467,-152.36,0.000307,2]
[319499849,1710802254476,-152.36,0.000307,2]
[319499850,1710802254486,-152.36,0.000307,2]
[319499851,1710802254495,-152.36,0.000307,2]
[319499852,1710802254504,-152.36,0.000307,2]
[319499853,1710802254514,-152.36,0.000307,2]
[319499854,1710802254523,-152.36,0.000307,2]
[319499855,1710802254533,-152.36,0.000307,2]
[319499856,1710802254542,-152.36,0.000307,2]
[319499857,1710802254552,-152.36,0.000307,2]
[319499858,1710802254562,-152.36,0.000307,2]
[319499859,1710802254571,-152.36,0.000307,2]
[319499860,1710802254581,-152.36,0.000307,2]
[319499861,1710802254590,-152.0,0.00030719,5]
[319499862,1710802254603,-150.0,0.0003072,2]
[319499863,1710802254612,-151.05666748,0.00030736,2]
[319499864,1710802254621,-500.0,0.0003076,10]
[319499865,1710802254631,-663.43,0.00030958,4]
[319499866,1710802254641,-663.09,0.00030958,4]
[319499867,1710802254650,-505.71,0.00030958,4]
[319499868,1710802254659,-153.05383812,0.00030974,7]
[319499869,1710802254669,-500.0,0.00031,30]
[319499870,1710802254681,-500.0,0.00031,30]
[319499871,1710802254690,-500.0,0.00031,30]
[319499872,1710802254700,-500.0,0.00031,30]
[319499873,1710802254709,-285.55,0.00031,3]
[319499874,1710802254718,-161.18210782,0.00031053,7]
[319499875,1710802254727,-463.11022735,0.00031122,2]
[319499876,1710802254737,-999.66,0.000312,2]
[319499877,1710802254747,-151.05666748,0.00031212,2]
[319499878,1710802254757,-663.43,0.00031232,4]
[319499879,1710802254766,-663.09,0.00031232,4]
[319499880,1710802254863,-505.71,0.00031232,4]
[319499881,1710802254872,-150.0,0.00031233,2]
[319499882,1710802254882,-500.0,0.00031308,10]
[319499883,1710802254891,-170.57418274,0.00031313,2]
[319499884,1710802254901,-152.36,0.000314,2]
[319499885,1710802254911,-152.36,0.000314,2]
[319499886,1710802254921,-152.36,0.000314,2]
[319499887,1710802254932,-152.36,0.000314,2]
[319499888,1710802254942,-152.36,0.000314,2]
[319499889,1710802254951,-152.36,0.000314,2]
[319499890,1710802254960,-152.36,0.000314,2]
[319499891,1710802254970,-152.36,0.000314,2]
[319499892,1710802254979,-152.36,0.000314,2]
[319499893,1710802254989,-152.36,0.000314,2]
[319499894,1710802254998,-152.36,0.000314,2]
[319499895,1710802255008,-152.36,0.000314,2]
[319499896,1710802255017,-152.36,0.000314,2]
[319499897,1710802255027,-152.36,0.000314,2]
[319499898,1710802255036,-152.36,0.000314,2]
[319499899,1710802255046,-152.36,0.000314,2]
[319499900,1710802255055,-152.36,0.000314,2]
[319499901,1710802255064,-152.36,0.000314,2]
[319499902,1710802255073,-151.031907,0.00031448,7]
[319499903,1710802255083,-300.0,0.000315,2]
[319499904,1710802255092,-663.43,0.00031506,4]